[Event "Titled Tuesday Blitz November 08 Early 2022"]
[White "Deac, Bogdan-Daniel"]
[Black "Pakleza, Zbigniew"]
[WhiteFideId "1226380"]
[BlackFideId "1119290"]
[WhiteElo "2648"]
[BlackElo "2411"]
[Result "0-1"]
[Round "06"]
[TimeControl "180+1"]
[Date "2022.11.08"]
[WhiteClock "0:00:06"]
[BlackClock "0:00:04"]

1. Nf3 {[%clk 0:03:00]}  d5 {[%clk 0:02:59]} 2. e3 {[%clk 0:03:01]}  Nf6 {[%clk 0:02:59]} 3. c4 {[%clk 0:03:01]}  c6 {[%clk 0:03:00]} 4. Nc3 {[%clk 0:03:02]}  Bg4 {[%clk 0:03:00]} 5. cxd5 {[%clk 0:02:58]}  Bxf3 {[%clk 0:03:00]} 6. gxf3 {[%clk 0:02:54]}  cxd5 {[%clk 0:03:01]} 7. Qb3 {[%clk 0:02:54]}  Qd7 {[%clk 0:03:00]} 8. d4 {[%clk 0:02:48]}  Nc6 {[%clk 0:02:59]} 9. Bd2 {[%clk 0:02:48]}  e6 {[%clk 0:02:56]} 10. Rc1 {[%clk 0:02:47]}  Bd6 {[%clk 0:02:47]} 11. f4 {[%clk 0:02:31]}  g6 {[%clk 0:02:37]} 12. Qd1 {[%clk 0:02:28]}  O-O {[%clk 0:02:27]} 13. Bd3 {[%clk 0:02:28]}  Rfc8 {[%clk 0:02:22]} 14. O-O {[%clk 0:02:05]}  Ne7 {[%clk 0:01:51]} 15. f3 {[%clk 0:01:34]}  Bc7 {[%clk 0:01:25]} 16. Be1 {[%clk 0:01:28]}  Nf5 {[%clk 0:01:22]} 17. Qe2 {[%clk 0:01:27]}  Bb6 {[%clk 0:01:18]} 18. Kh1 {[%clk 0:01:22]}  a6 {[%clk 0:01:14]} 19. a3 {[%clk 0:01:17]}  Rc7 {[%clk 0:01:09]} 20. Bf2 {[%clk 0:01:03]}  Rac8 {[%clk 0:01:08]} 21. Rcd1 {[%clk 0:01:03]}  Nh5 {[%clk 0:01:01]} 22. Rg1 {[%clk 0:00:53]}  Kf8 {[%clk 0:00:57]} 23. Rg5 {[%clk 0:00:33]}  Ba5 {[%clk 0:00:47]} 24. Be1 {[%clk 0:00:17]}  b5 {[%clk 0:00:37]} 25. Qf2 {[%clk 0:00:07]}  Bb6 {[%clk 0:00:33]} 26. Bxf5 {[%clk 0:00:04]}  exf5 {[%clk 0:00:33]} 27. Rxh5 {[%clk 0:00:04]}  gxh5 {[%clk 0:00:33]} 28. Qh4 {[%clk 0:00:05]}  Qe6 {[%clk 0:00:28]} 29. Bf2 {[%clk 0:00:04]}  Rxc3 {[%clk 0:00:23]} 30. bxc3 {[%clk 0:00:04]}  Rxc3 {[%clk 0:00:24]} 31. Qxh5 {[%clk 0:00:05]}  Rc2 {[%clk 0:00:24]} 32. Rf1 {[%clk 0:00:04]}  Qg6 {[%clk 0:00:21]} 33. Qh4 {[%clk 0:00:03]}  Ke8 {[%clk 0:00:22]} 34. Rg1 {[%clk 0:00:03]}  Qe6 {[%clk 0:00:21]} 35. Rg8+ {[%clk 0:00:03]}  Kd7 {[%clk 0:00:22]} 36. Rg7 {[%clk 0:00:03]}  h6 {[%clk 0:00:17]} 37. Kg1 {[%clk 0:00:03]}  Bd8 {[%clk 0:00:15]} 38. Qh5 {[%clk 0:00:03]}  Ke8 {[%clk 0:00:16]} 39. Rg8+ {[%clk 0:00:03]}  Kd7 {[%clk 0:00:16]} 40. Rf8 {[%clk 0:00:03]}  Ke7 {[%clk 0:00:10]} 41. Rg8 {[%clk 0:00:03]}  Kd7 {[%clk 0:00:07]} 42. Rg7 {[%clk 0:00:04]}  Ke8 {[%clk 0:00:05]} 43. Kf1 {[%clk 0:00:04]}  Bf6 {[%clk 0:00:05]} 44. Rg8+ {[%clk 0:00:04]}  Kd7 {[%clk 0:00:06]} 45. Qxh6 {[%clk 0:00:04]}  a5 {[%clk 0:00:04]} 46. Qf8 {[%clk 0:00:04]}  Qc6 {[%clk 0:00:01]} 47. Qxf7+ {[%clk 0:00:04]}  Be7 {[%clk 0:00:01]} 48. Qe8+ {[%clk 0:00:04]}  Kc7 {[%clk 0:00:01]} 49. Qxe7+ {[%clk 0:00:04]}  Kb6 {[%clk 0:00:02]} 50. Rb8+ {[%clk 0:00:04]}  Ka6 {[%clk 0:00:02]} 51. Qe5 {[%clk 0:00:04]}  b4 {[%clk 0:00:03]} 52. axb4 {[%clk 0:00:04]}  Rc1+ {[%clk 0:00:03]} 53. Kg2 {[%clk 0:00:04]}  Qg6+ {[%clk 0:00:04]} 54. Bg3 {[%clk 0:00:05]}  Rc2+ {[%clk 0:00:04]} 55. Kg1 {[%clk 0:00:05]}  axb4 {[%clk 0:00:05]} 56. Ra8+ {[%clk 0:00:05]}  Kb5 {[%clk 0:00:05]} 57. Rb8+ {[%clk 0:00:05]}  Kc4 {[%clk 0:00:05]} 58. Qc7+ {[%clk 0:00:05]}  Kd3 {[%clk 0:00:06]} 59. Rb7 {[%clk 0:00:05]}  Rxc7 {[%clk 0:00:05]} 60. Rxc7 {[%clk 0:00:06]}  b3 {[%clk 0:00:05]} 61. Rb7 {[%clk 0:00:07]}  Kc2 {[%clk 0:00:05]} 62. Rc7+ {[%clk 0:00:07]}  Kb2 {[%clk 0:00:06]} 63. Rb7 {[%clk 0:00:07]}  Qc6 {[%clk 0:00:05]} 64. Rb8 {[%clk 0:00:07]}  Qc2 {[%clk 0:00:04]} 65. h4 {[%clk 0:00:07]}  Kc1 {[%clk 0:00:03]} 66. h5 {[%clk 0:00:07]}  b2 {[%clk 0:00:04]} 67. h6 {[%clk 0:00:08]}  b1=Q {[%clk 0:00:04]} 68. Rxb1+ {[%clk 0:00:08]}  Qxb1 {[%clk 0:00:05]} 69. Bh4 {[%clk 0:00:07]}  Qb7 {[%clk 0:00:04]} 70. Bf6 {[%clk 0:00:06]}  Qf7 {[%clk 0:00:04]} 71. Bg7 {[%clk 0:00:06]}  Qh5 {[%clk 0:00:04]} 72. Kf2 {[%clk 0:00:06]}  Kd2 {[%clk 0:00:04]} 73. Bf8 {[%clk 0:00:06]}  Qh2+ {[%clk 0:00:04]} 74. Kf1 {[%clk 0:00:06]}  Kxe3 {[%clk 0:00:04]} 0-1


[Site "https://www.chess.com"]

[Event "Titled Tuesday Blitz November 08 Early 2022"]
[White "Degenbaev, Aziz"]
[Black "Vlassov, Nikolai"]
[WhiteFideId "13802640"]
[BlackFideId "4103360"]
[WhiteElo "2039"]
[BlackElo "2324"]
[Result "0-1"]
[Round "06"]
[TimeControl "180+1"]
[Date "2022.11.09"]
[WhiteClock "0:00:02"]
[BlackClock "0:00:07"]

1. c4 {[%clk 0:03:00]}  e5 {[%clk 0:02:59]} 2. Nc3 {[%clk 0:03:00]}  Nf6 {[%clk 0:02:58]} 3. Nf3 {[%clk 0:03:00]}  Nc6 {[%clk 0:02:58]} 4. e4 {[%clk 0:03:00]}  Bb4 {[%clk 0:02:55]} 5. d3 {[%clk 0:02:58]}  d6 {[%clk 0:02:55]} 6. a3 {[%clk 0:02:55]}  Bxc3+ {[%clk 0:02:53]} 7. bxc3 {[%clk 0:02:56]}  O-O {[%clk 0:02:53]} 8. g3 {[%clk 0:02:56]}  h6 {[%clk 0:02:52]} 9. Bg2 {[%clk 0:02:56]}  Bg4 {[%clk 0:02:48]} 10. O-O {[%clk 0:02:56]}  Qd7 {[%clk 0:02:48]} 11. Re1 {[%clk 0:02:49]}  a6 {[%clk 0:02:43]} 12. Rb1 {[%clk 0:02:43]}  Rab8 {[%clk 0:02:36]} 13. d4 {[%clk 0:02:34]}  Rfe8 {[%clk 0:02:34]} 14. d5 {[%clk 0:02:31]}  Nd8 {[%clk 0:02:27]} 15. Qd3 {[%clk 0:02:25]}  b6 {[%clk 0:02:26]} 16. c5 {[%clk 0:02:15]}  dxc5 {[%clk 0:02:17]} 17. Qxa6 {[%clk 0:02:14]}  Bxf3 {[%clk 0:02:13]} 18. Bxf3 {[%clk 0:02:14]}  Nb7 {[%clk 0:02:10]} 19. Bg2 {[%clk 0:01:58]}  Nd6 {[%clk 0:02:10]} 20. Qd3 {[%clk 0:01:58]}  Ra8 {[%clk 0:02:03]} 21. f4 {[%clk 0:01:58]}  exf4 {[%clk 0:01:29]} 22. Bxf4 {[%clk 0:01:39]}  g5 {[%clk 0:01:28]} 23. e5 {[%clk 0:01:32]}  gxf4 {[%clk 0:01:27]} 24. exf6 {[%clk 0:01:32]}  Qg4 {[%clk 0:00:45]} 25. gxf4 {[%clk 0:01:13]}  Rxa3 {[%clk 0:00:41]} 26. Re7 {[%clk 0:00:50]}  Qxf4 {[%clk 0:00:29]} 27. Rbe1 {[%clk 0:00:47]}  Rea8 {[%clk 0:00:25]} 28. Rf1 {[%clk 0:00:42]}  Ra1 {[%clk 0:00:23]} 29. Rxc7 {[%clk 0:00:33]}  Qxf6 {[%clk 0:00:22]} 30. Rc6 {[%clk 0:00:24]}  Rxf1+ {[%clk 0:00:21]} 31. Bxf1 {[%clk 0:00:24]}  Kh8 {[%clk 0:00:19]} 32. Rxb6 {[%clk 0:00:18]}  Rg8+ {[%clk 0:00:18]} 33. Bg2 {[%clk 0:00:18]}  Qg5 {[%clk 0:00:17]} 34. Qf3 {[%clk 0:00:16]}  Nf5 {[%clk 0:00:17]} 35. h3 {[%clk 0:00:11]}  Nh4 {[%clk 0:00:16]} 36. Qf6+ {[%clk 0:00:10]}  Qxf6 {[%clk 0:00:16]} 37. Rxf6 {[%clk 0:00:11]}  Rxg2+ {[%clk 0:00:15]} 38. Kf1 {[%clk 0:00:11]}  Rg6 {[%clk 0:00:12]} 39. Rxf7 {[%clk 0:00:12]}  Kg8 {[%clk 0:00:12]} 40. Rf4 {[%clk 0:00:11]}  Ng2 {[%clk 0:00:10]} 41. Rf3 {[%clk 0:00:11]}  h5 {[%clk 0:00:07]} 42. c4 {[%clk 0:00:11]}  h4 {[%clk 0:00:06]} 43. Kf2 {[%clk 0:00:11]}  Rg5 {[%clk 0:00:06]} 44. d6 {[%clk 0:00:09]}  Rg7 {[%clk 0:00:05]} 45. d7 {[%clk 0:00:04]}  Rxd7 {[%clk 0:00:05]} 46. Kxg2 {[%clk 0:00:05]}  Rd4 {[%clk 0:00:06]} 47. Rc3 {[%clk 0:00:05]}  Kf7 {[%clk 0:00:05]} 48. Rc2 {[%clk 0:00:04]}  Ke6 {[%clk 0:00:06]} 49. Re2+ {[%clk 0:00:03]}  Kf5 {[%clk 0:00:06]} 50. Kf3 {[%clk 0:00:01]}  Rxc4 {[%clk 0:00:06]} 51. Re8 {[%clk 0:00:02]}  Rc3+ {[%clk 0:00:06]} 52. Kg2 {[%clk 0:00:02]}  Kf4 {[%clk 0:00:05]} 53. Rf8+ {[%clk 0:00:02]}  Ke5 {[%clk 0:00:04]} 54. Re8+ {[%clk 0:00:02]}  Kd5 {[%clk 0:00:05]} 55. Rh8 {[%clk 0:00:03]}  Rc4 {[%clk 0:00:05]} 56. Rh5+ {[%clk 0:00:03]}  Kc6 {[%clk 0:00:05]} 57. Kf3 {[%clk 0:00:03]}  Kb5 {[%clk 0:00:05]} 58. Rh8 {[%clk 0:00:04]}  Rd4 {[%clk 0:00:05]} 59. Rb8+ {[%clk 0:00:03]}  Ka4 {[%clk 0:00:05]} 60. Ra8+ {[%clk 0:00:03]}  Kb4 {[%clk 0:00:06]} 61. Rb8+ {[%clk 0:00:04]}  Kc3 {[%clk 0:00:06]} 62. Rc8 {[%clk 0:00:04]}  c4 {[%clk 0:00:06]} 63. Rc7 {[%clk 0:00:04]}  Kd3 {[%clk 0:00:06]} 64. Rg7 {[%clk 0:00:02]}  c3 {[%clk 0:00:07]} 0-1


[Site "https://www.chess.com"]

[Event "Titled Tuesday Blitz November 08 Early 2022"]
[White "Dominguez Perez, Leinier"]
[Black "Dehtiarov, Roman"]
[WhiteFideId "3503240"]
[BlackFideId "14186640"]
[WhiteElo "2647"]
[BlackElo "2200"]
[Result "1-0"]
[Round "06"]
[TimeControl "180+1"]
[Date "2022.11.09"]
[WhiteClock "0:00:31"]
[BlackClock "0:00:03"]

1. e4 {[%clk 0:03:00]}  e5 {[%clk 0:02:58]} 2. Nf3 {[%clk 0:03:00]}  Nc6 {[%clk 0:02:58]} 3. Bc4 {[%clk 0:03:01]}  Nf6 {[%clk 0:02:57]} 4. d3 {[%clk 0:03:01]}  Bc5 {[%clk 0:02:56]} 5. O-O {[%clk 0:03:01]}  O-O {[%clk 0:02:56]} 6. h3 {[%clk 0:03:01]}  d6 {[%clk 0:02:56]} 7. c3 {[%clk 0:03:01]}  a6 {[%clk 0:02:56]} 8. a4 {[%clk 0:03:01]}  Be6 {[%clk 0:02:51]} 9. Bxe6 {[%clk 0:03:01]}  fxe6 {[%clk 0:02:52]} 10. b4 {[%clk 0:03:01]}  Ba7 {[%clk 0:02:51]} 11. Nbd2 {[%clk 0:03:00]}  Qe7 {[%clk 0:02:47]} 12. Re1 {[%clk 0:02:59]}  Nh5 {[%clk 0:02:44]} 13. Nf1 {[%clk 0:02:54]}  Nf4 {[%clk 0:02:38]} 14. Be3 {[%clk 0:02:44]}  Bxe3 {[%clk 0:02:30]} 15. fxe3 {[%clk 0:02:44]}  Ng6 {[%clk 0:02:25]} 16. Ra2 {[%clk 0:02:41]}  d5 {[%clk 0:02:22]} 17. Ng3 {[%clk 0:02:32]}  d4 {[%clk 0:02:15]} 18. exd4 {[%clk 0:02:16]}  exd4 {[%clk 0:02:14]} 19. Nxd4 {[%clk 0:02:16]}  Nxd4 {[%clk 0:02:13]} 20. cxd4 {[%clk 0:02:16]}  Qxb4 {[%clk 0:02:12]} 21. Ne2 {[%clk 0:02:10]}  Qd6 {[%clk 0:01:53]} 22. Qb3 {[%clk 0:01:50]}  b6 {[%clk 0:01:40]} 23. Rc2 {[%clk 0:01:41]}  Kh8 {[%clk 0:01:26]} 24. Rec1 {[%clk 0:01:25]}  Nf4 {[%clk 0:01:06]} 25. Nxf4 {[%clk 0:01:24]}  Qxd4+ {[%clk 0:01:03]} 26. Kh2 {[%clk 0:01:18]}  Rxf4 {[%clk 0:01:03]} 27. Rxc7 {[%clk 0:01:17]}  Qe5 {[%clk 0:00:18]} 28. Kh1 {[%clk 0:01:17]}  Raf8 {[%clk 0:00:17]} 29. Rc8 {[%clk 0:01:17]}  b5 {[%clk 0:00:14]} 30. axb5 {[%clk 0:01:12]}  axb5 {[%clk 0:00:15]} 31. Qb4 {[%clk 0:01:11]}  Kg8 {[%clk 0:00:13]} 32. Kg1 {[%clk 0:01:01]}  Rf1+ {[%clk 0:00:10]} 33. Rxf1 {[%clk 0:01:00]}  Rxc8 {[%clk 0:00:10]} 34. Rb1 {[%clk 0:00:44]}  Qc5+ {[%clk 0:00:10]} 35. Qxc5 {[%clk 0:00:44]}  Rxc5 {[%clk 0:00:11]} 36. Kf2 {[%clk 0:00:44]}  e5 {[%clk 0:00:11]} 37. Ke3 {[%clk 0:00:45]}  Kf7 {[%clk 0:00:11]} 38. g4 {[%clk 0:00:42]}  Ke6 {[%clk 0:00:11]} 39. g5 {[%clk 0:00:42]}  Ke7 {[%clk 0:00:09]} 40. h4 {[%clk 0:00:42]}  Ke6 {[%clk 0:00:08]} 41. h5 {[%clk 0:00:42]}  Ke7 {[%clk 0:00:08]} 42. Rb2 {[%clk 0:00:40]}  Ke6 {[%clk 0:00:08]} 43. Ra2 {[%clk 0:00:39]}  Kd6 {[%clk 0:00:05]} 44. Ra8 {[%clk 0:00:36]}  Rc7 {[%clk 0:00:05]} 45. Rb8 {[%clk 0:00:36]}  Kc6 {[%clk 0:00:05]} 46. d4 {[%clk 0:00:35]}  exd4+ {[%clk 0:00:05]} 47. Kxd4 {[%clk 0:00:36]}  Rd7+ {[%clk 0:00:06]} 48. Ke5 {[%clk 0:00:35]}  Re7+ {[%clk 0:00:06]} 49. Kf5 {[%clk 0:00:35]}  Rf7+ {[%clk 0:00:06]} 50. Ke6 {[%clk 0:00:35]}  Rb7 {[%clk 0:00:06]} 51. Rxb7 {[%clk 0:00:30]}  Kxb7 {[%clk 0:00:07]} 52. Kf7 {[%clk 0:00:30]}  b4 {[%clk 0:00:07]} 53. e5 {[%clk 0:00:31]}  b3 {[%clk 0:00:07]} 54. e6 {[%clk 0:00:32]}  b2 {[%clk 0:00:08]} 55. e7 {[%clk 0:00:32]}  b1=Q {[%clk 0:00:07]} 56. e8=Q {[%clk 0:00:33]}  Qf5+ {[%clk 0:00:06]} 57. Kxg7 {[%clk 0:00:33]}  Qxg5+ {[%clk 0:00:06]} 58. Kxh7 {[%clk 0:00:34]}  Qf5+ {[%clk 0:00:04]} 59. Qg6 {[%clk 0:00:34]}  Qf4 {[%clk 0:00:04]} 60. h6 {[%clk 0:00:33]}  Kc8 {[%clk 0:00:03]} 61. Kh8 {[%clk 0:00:31]} 1-0


[Site "https://www.chess.com"]

[Event "Titled Tuesday Blitz November 08 Early 2022"]
[White "Donskov, Anatoly"]
[Black "Barbashin, Igor"]
[WhiteFideId "24143413"]
[BlackFideId "4155718"]
[WhiteElo "2219"]
[BlackElo "2138"]
[Result "1-0"]
[Round "06"]
[TimeControl "180+1"]
[Date "2022.11.09"]
[WhiteClock "0:00:17"]
[BlackClock "0:00:05"]

1. e4 {[%clk 0:02:45]}  d5 {[%clk 0:02:59]} 2. exd5 {[%clk 0:02:44]}  Nf6 {[%clk 0:02:59]} 3. Bb5+ {[%clk 0:02:43]}  Nbd7 {[%clk 0:02:58]} 4. Nc3 {[%clk 0:02:41]}  g6 {[%clk 0:02:58]} 5. Nf3 {[%clk 0:02:38]}  Bg7 {[%clk 0:02:57]} 6. d4 {[%clk 0:02:38]}  O-O {[%clk 0:02:57]} 7. O-O {[%clk 0:02:38]}  Nb6 {[%clk 0:02:56]} 8. h3 {[%clk 0:02:30]}  a6 {[%clk 0:02:56]} 9. Bd3 {[%clk 0:02:28]}  Nbxd5 {[%clk 0:02:56]} 10. Nxd5 {[%clk 0:02:20]}  Qxd5 {[%clk 0:02:54]} 11. Re1 {[%clk 0:02:15]}  e6 {[%clk 0:02:33]} 12. c4 {[%clk 0:02:03]}  Qd6 {[%clk 0:02:27]} 13. Be3 {[%clk 0:01:50]}  b6 {[%clk 0:02:24]} 14. Qe2 {[%clk 0:01:37]}  Bb7 {[%clk 0:02:21]} 15. Rad1 {[%clk 0:01:37]}  a5 {[%clk 0:02:03]} 16. Ne5 {[%clk 0:01:26]}  Rad8 {[%clk 0:01:44]} 17. b3 {[%clk 0:01:14]}  Nd7 {[%clk 0:01:29]} 18. Nf3 {[%clk 0:00:57]}  Qe7 {[%clk 0:01:09]} 19. Bb1 {[%clk 0:00:53]}  Qb4 {[%clk 0:01:02]} 20. Bf4 {[%clk 0:00:48]}  Rc8 {[%clk 0:00:44]} 21. h4 {[%clk 0:00:41]}  Nf6 {[%clk 0:00:31]} 22. Be5 {[%clk 0:00:37]}  Rfd8 {[%clk 0:00:24]} 23. Qb2 {[%clk 0:00:32]}  Nh5 {[%clk 0:00:21]} 24. Bxg7 {[%clk 0:00:29]}  Nxg7 {[%clk 0:00:22]} 25. Ne5 {[%clk 0:00:27]}  Qe7 {[%clk 0:00:21]} 26. g3 {[%clk 0:00:20]}  Nf5 {[%clk 0:00:20]} 27. d5 {[%clk 0:00:19]}  exd5 {[%clk 0:00:16]} 28. Ng4 {[%clk 0:00:19]}  Qc5 {[%clk 0:00:11]} 29. Nf6+ {[%clk 0:00:19]}  Kg7 {[%clk 0:00:05]} 30. Nd7+ {[%clk 0:00:17]} 1-0


[Site "https://www.chess.com"]

[Event "Titled Tuesday Blitz November 08 Early 2022"]
[White "Durarbayli, Vasif"]
[Black "Svane, Rasmus"]
[WhiteFideId "13402935"]
[BlackFideId "4657101"]
[WhiteElo "2586"]
[BlackElo "2674"]
[Result "0-1"]
[Round "06"]
[TimeControl "180+1"]
[Date "2022.11.08"]
[WhiteClock "0:00:18"]
[BlackClock "0:01:22"]

1. e4 {[%clk 0:03:00]}  c6 {[%clk 0:02:59]} 2. d4 {[%clk 0:03:01]}  d5 {[%clk 0:03:00]} 3. e5 {[%clk 0:03:02]}  Bf5 {[%clk 0:02:59]} 4. Nf3 {[%clk 0:03:02]}  e6 {[%clk 0:03:00]} 5. Be2 {[%clk 0:03:02]}  Ne7 {[%clk 0:03:00]} 6. O-O {[%clk 0:03:01]}  Ng6 {[%clk 0:03:01]} 7. c3 {[%clk 0:02:49]}  Nd7 {[%clk 0:03:00]} 8. a4 {[%clk 0:02:49]}  f6 {[%clk 0:03:00]} 9. exf6 {[%clk 0:02:43]}  Qxf6 {[%clk 0:03:01]} 10. Bg5 {[%clk 0:02:39]}  Qf7 {[%clk 0:03:02]} 11. Nbd2 {[%clk 0:02:31]}  Bd6 {[%clk 0:03:01]} 12. a5 {[%clk 0:02:22]}  O-O {[%clk 0:02:58]} 13. a6 {[%clk 0:02:22]}  b6 {[%clk 0:02:59]} 14. c4 {[%clk 0:02:18]}  Nf6 {[%clk 0:02:47]} 15. Rc1 {[%clk 0:01:58]}  Rac8 {[%clk 0:02:22]} 16. Re1 {[%clk 0:01:33]}  Ne4 {[%clk 0:02:21]} 17. Be3 {[%clk 0:01:30]}  Nf4 {[%clk 0:02:17]} 18. Bf1 {[%clk 0:01:20]}  Qg6 {[%clk 0:02:08]} 19. Nxe4 {[%clk 0:00:48]}  Bxe4 {[%clk 0:02:01]} 20. Bxf4 {[%clk 0:00:46]}  Rxf4 {[%clk 0:01:44]} 21. Ne5 {[%clk 0:00:27]}  Bxe5 {[%clk 0:01:38]} 22. dxe5 {[%clk 0:00:28]}  Rcf8 {[%clk 0:01:39]} 23. cxd5 {[%clk 0:00:20]}  Bxg2 {[%clk 0:01:21]} 24. Bxg2 {[%clk 0:00:18]}  Rxf2 {[%clk 0:01:22]} 0-1


[Site "https://www.chess.com"]

[Event "Titled Tuesday Blitz November 08 Early 2022"]
[White "Estrada Nieto, Julian"]
[Black "Fawzy, Adham"]
[WhiteFideId "5101018"]
[BlackFideId "10613129"]
[WhiteElo "2221"]
[BlackElo "2541"]
[Result "0-1"]
[Round "06"]
[TimeControl "180+1"]
[Date "2022.11.09"]
[WhiteClock "0:00:05"]
[BlackClock "0:00:07"]

1. e4 {[%clk 0:02:41]}  c5 {[%clk 0:02:59]} 2. Nf3 {[%clk 0:02:40]}  d6 {[%clk 0:02:59]} 3. Bb5+ {[%clk 0:02:38]}  Nd7 {[%clk 0:02:59]} 4. d4 {[%clk 0:02:37]}  cxd4 {[%clk 0:03:00]} 5. Qxd4 {[%clk 0:02:38]}  a6 {[%clk 0:03:01]} 6. Bxd7+ {[%clk 0:02:37]}  Bxd7 {[%clk 0:03:02]} 7. Nc3 {[%clk 0:02:37]}  Nf6 {[%clk 0:03:00]} 8. Bg5 {[%clk 0:02:37]}  e6 {[%clk 0:02:59]} 9. O-O-O {[%clk 0:02:37]}  Be7 {[%clk 0:02:58]} 10. e5 {[%clk 0:02:37]}  dxe5 {[%clk 0:02:50]} 11. Nxe5 {[%clk 0:02:38]}  Bc6 {[%clk 0:02:11]} 12. Nxc6 {[%clk 0:02:37]}  bxc6 {[%clk 0:02:12]} 13. Bxf6 {[%clk 0:02:37]}  Bxf6 {[%clk 0:02:08]} 14. Qc5 {[%clk 0:02:36]}  Qc7 {[%clk 0:01:58]} 15. Ne4 {[%clk 0:02:34]}  Be7 {[%clk 0:01:41]} 16. Nd6+ {[%clk 0:02:34]}  Bxd6 {[%clk 0:01:15]} 17. Rxd6 {[%clk 0:02:33]}  O-O {[%clk 0:01:08]} 18. Rhd1 {[%clk 0:02:05]}  Rab8 {[%clk 0:01:06]} 19. Rxc6 {[%clk 0:01:58]}  Qxh2 {[%clk 0:00:51]} 20. Qg5 {[%clk 0:01:37]}  h6 {[%clk 0:00:40]} 21. Qg4 {[%clk 0:01:22]}  Qe5 {[%clk 0:00:39]} 22. Rc3 {[%clk 0:01:03]}  Rxb2 {[%clk 0:00:30]} 23. Kxb2 {[%clk 0:00:50]}  Rb8+ {[%clk 0:00:29]} 24. Kc1 {[%clk 0:00:49]}  Qxc3 {[%clk 0:00:29]} 25. Qd4 {[%clk 0:00:42]}  Qa3+ {[%clk 0:00:24]} 26. Kd2 {[%clk 0:00:40]}  Qxa2 {[%clk 0:00:23]} 27. Rc1 {[%clk 0:00:31]}  Qa5+ {[%clk 0:00:19]} 28. Ke2 {[%clk 0:00:29]}  Rd8 {[%clk 0:00:18]} 29. Qe3 {[%clk 0:00:27]}  Qd5 {[%clk 0:00:15]} 30. Kf1 {[%clk 0:00:25]}  Qc4+ {[%clk 0:00:13]} 31. Kg1 {[%clk 0:00:24]}  a5 {[%clk 0:00:14]} 32. Qb6 {[%clk 0:00:20]}  Rd5 {[%clk 0:00:10]} 33. Qb8+ {[%clk 0:00:12]}  Kh7 {[%clk 0:00:10]} 34. Qb7 {[%clk 0:00:12]}  Qe4 {[%clk 0:00:10]} 35. Qxf7 {[%clk 0:00:09]}  Rf5 {[%clk 0:00:08]} 36. Qd7 {[%clk 0:00:06]}  Rg5 {[%clk 0:00:08]} 37. g3 {[%clk 0:00:05]}  Rh5 {[%clk 0:00:07]} 0-1


[Site "https://www.chess.com"]

[Event "Titled Tuesday Blitz November 08 Early 2022"]
[White "Fajdetic, Hrvoje"]
[Black "Aqib Javaid Butt"]
[WhiteFideId "14501945"]
[BlackFideId "7801262"]
[WhiteElo "2172"]
[BlackElo "1659"]
[Result "1-0"]
[Round "06"]
[TimeControl "180+1"]
[Date "2022.11.09"]
[WhiteClock "0:01:29"]
[BlackClock "0:00:14"]

1. b3 {[%clk 0:02:54]}  d5 {[%clk 0:02:58]} 2. Bb2 {[%clk 0:02:55]}  Nf6 {[%clk 0:02:58]} 3. g3 {[%clk 0:02:56]}  c6 {[%clk 0:02:58]} 4. Bg2 {[%clk 0:02:57]}  Bf5 {[%clk 0:02:58]} 5. d3 {[%clk 0:02:57]}  Bg6 {[%clk 0:02:58]} 6. Nd2 {[%clk 0:02:58]}  e6 {[%clk 0:02:56]} 7. e4 {[%clk 0:02:59]}  Be7 {[%clk 0:02:54]} 8. Ne2 {[%clk 0:02:59]}  O-O {[%clk 0:02:53]} 9. h3 {[%clk 0:02:59]}  Nbd7 {[%clk 0:02:53]} 10. O-O {[%clk 0:02:58]}  a5 {[%clk 0:02:46]} 11. Kh2 {[%clk 0:02:59]}  a4 {[%clk 0:02:46]} 12. e5 {[%clk 0:02:53]}  Ne8 {[%clk 0:02:44]} 13. f4 {[%clk 0:02:52]}  f6 {[%clk 0:02:42]} 14. d4 {[%clk 0:02:39]}  c5 {[%clk 0:02:16]} 15. c3 {[%clk 0:02:38]}  Qb6 {[%clk 0:02:09]} 16. g4 {[%clk 0:02:33]}  fxe5 {[%clk 0:02:07]} 17. fxe5 {[%clk 0:02:29]}  c4 {[%clk 0:01:58]} 18. b4 {[%clk 0:02:29]}  Nc7 {[%clk 0:01:38]} 19. Nf4 {[%clk 0:02:28]}  Bd3 {[%clk 0:01:23]} 20. Nxd3 {[%clk 0:02:28]}  cxd3 {[%clk 0:01:23]} 21. Rxf8+ {[%clk 0:02:27]}  Rxf8 {[%clk 0:01:22]} 22. a3 {[%clk 0:02:25]}  Bh4 {[%clk 0:01:07]} 23. Nf3 {[%clk 0:02:24]}  Be7 {[%clk 0:00:56]} 24. Qxd3 {[%clk 0:02:24]}  Nb5 {[%clk 0:00:54]} 25. Rf1 {[%clk 0:02:09]}  Qc6 {[%clk 0:00:53]} 26. Nd2 {[%clk 0:02:03]}  Nb6 {[%clk 0:00:50]} 27. Rxf8+ {[%clk 0:02:00]}  Bxf8 {[%clk 0:00:51]} 28. Bf1 {[%clk 0:01:56]}  Nc7 {[%clk 0:00:44]} 29. c4 {[%clk 0:01:53]}  dxc4 {[%clk 0:00:37]} 30. Nxc4 {[%clk 0:01:53]}  Nxc4 {[%clk 0:00:25]} 31. Qxc4 {[%clk 0:01:54]}  Qf3 {[%clk 0:00:25]} 32. Qe2 {[%clk 0:01:43]}  Qf4+ {[%clk 0:00:20]} 33. Kh1 {[%clk 0:01:42]}  Nd5 {[%clk 0:00:20]} 34. Bg2 {[%clk 0:01:39]}  Ne3 {[%clk 0:00:18]} 35. Bc1 {[%clk 0:01:37]}  Nxg2 {[%clk 0:00:17]} 36. Bxf4 {[%clk 0:01:35]}  Nxf4 {[%clk 0:00:18]} 37. Qe4 {[%clk 0:01:32]}  Nxh3 {[%clk 0:00:16]} 38. Kg2 {[%clk 0:01:29]}  Ng5 {[%clk 0:00:14]} 39. Qxb7 {[%clk 0:01:29]} 1-0


[Site "https://www.chess.com"]

[Event "Titled Tuesday Blitz November 08 Early 2022"]
[White "Farmani Anosheh, Armin"]
[Black "Belozerov, Andrei"]
[WhiteFideId "24613240"]
[BlackFideId "4120213"]
[WhiteElo "2289"]
[BlackElo "2360"]
[Result "0-1"]
[Round "06"]
[TimeControl "180+1"]
[Date "2022.11.09"]
[WhiteClock "0:00:19"]
[BlackClock "0:01:03"]

1. e4 {[%clk 0:03:00]}  c6 {[%clk 0:02:58]} 2. d4 {[%clk 0:03:00]}  d5 {[%clk 0:02:58]} 3. e5 {[%clk 0:03:00]}  Bf5 {[%clk 0:02:56]} 4. h4 {[%clk 0:02:59]}  h5 {[%clk 0:02:56]} 5. Bd3 {[%clk 0:02:22]}  Bxd3 {[%clk 0:02:55]} 6. Qxd3 {[%clk 0:02:22]}  Qa5+ {[%clk 0:02:53]} 7. Nd2 {[%clk 0:02:18]}  e6 {[%clk 0:02:52]} 8. Nf3 {[%clk 0:02:17]}  Nh6 {[%clk 0:02:45]} 9. O-O {[%clk 0:02:11]}  Nf5 {[%clk 0:02:43]} 10. c4 {[%clk 0:02:12]}  Be7 {[%clk 0:02:37]} 11. b3 {[%clk 0:02:06]}  Nxh4 {[%clk 0:02:22]} 12. Nxh4 {[%clk 0:02:02]}  Bxh4 {[%clk 0:02:16]} 13. Nf3 {[%clk 0:02:02]}  Be7 {[%clk 0:02:15]} 14. a4 {[%clk 0:02:02]}  Na6 {[%clk 0:02:12]} 15. Bg5 {[%clk 0:01:20]}  Qd8 {[%clk 0:02:11]} 16. Bxe7 {[%clk 0:01:11]}  Qxe7 {[%clk 0:02:10]} 17. a5 {[%clk 0:01:02]}  h4 {[%clk 0:02:01]} 18. cxd5 {[%clk 0:00:43]}  Nb4 {[%clk 0:01:36]} 19. Qc4 {[%clk 0:00:38]}  exd5 {[%clk 0:01:28]} 20. Qe2 {[%clk 0:00:34]}  h3 {[%clk 0:01:27]} 21. g3 {[%clk 0:00:35]}  Qe6 {[%clk 0:01:21]} 22. Kh2 {[%clk 0:00:34]}  Qg4 {[%clk 0:01:15]} 23. Rfe1 {[%clk 0:00:21]}  Nc2 {[%clk 0:01:05]} 24. Qxc2 {[%clk 0:00:18]}  Qxf3 {[%clk 0:01:05]} 25. a6 {[%clk 0:00:19]}  Qg2# {[%clk 0:01:03]} 0-1


[Site "https://www.chess.com"]